[Event "Early-Titled-Tuesday-Blitz-February-27-2024"]
[Site "Chess.com"]
[Date "2024.02.27"]
[Round "2"]
[White "CarlosjPineror"]
[Black "dealshark"]
[Result "1/2-1/2"]
[WhiteElo "2573"]
[BlackElo "2373"]
[TimeControl "180+1"]
[EndTime "8:20:09 PST"]
[Termination "Game drawn - insufficient material"]

1. e4 {[%clk 0:03:00.9]} 1... c6 {[%clk 0:03:00.1]} 2. d3 {[%clk 0:03:00]} 2...
d5 {[%clk 0:03:01]} 3. Nd2 {[%clk 0:03:00]} 3... dxe4 {[%clk 0:03:00.5]} 4. dxe4
{[%clk 0:03:00.9]} 4... Nd7 {[%clk 0:03:00.1]} 5. Ngf3 {[%clk 0:03:00.1]} 5...
e6 {[%clk 0:02:58.5]} 6. c3 {[%clk 0:02:59.7]} 6... Be7 {[%clk 0:02:57.2]} 7.
Be2 {[%clk 0:02:59.7]} 7... Ngf6 {[%clk 0:02:57.5]} 8. O-O {[%clk 0:03:00.6]}
8... O-O {[%clk 0:02:58]} 9. Qc2 {[%clk 0:03:00.1]} 9... b6 {[%clk 0:02:55.6]}
10. Rd1 {[%clk 0:03:00.2]} 10... Qc7 {[%clk 0:02:54.3]} 11. Nf1 {[%clk
0:03:00.4]} 11... Bb7 {[%clk 0:02:54]} 12. Ng3 {[%clk 0:03:01]} 12... Rfd8
{[%clk 0:02:53.2]} 13. b3 {[%clk 0:02:54.1]} 13... c5 {[%clk 0:02:52.7]} 14. Bb2
{[%clk 0:02:53]} 14... Bd6 {[%clk 0:02:49.4]} 15. Bd3 {[%clk 0:02:42.9]} 15...
Ne5 {[%clk 0:02:41.3]} 16. Nxe5 {[%clk 0:02:41.3]} 16... Bxe5 {[%clk 0:02:42.2]}
17. Qe2 {[%clk 0:02:39.8]} 17... Rd7 {[%clk 0:02:24.4]} 18. f3 {[%clk
0:02:36.1]} 18... Bxg3 {[%clk 0:02:20.9]} 19. hxg3 {[%clk 0:02:35.2]} 19... Qxg3
{[%clk 0:02:20.8]} 20. c4 {[%clk 0:02:35.9]} 20... Nh5 {[%clk 0:02:17.8]} 21.
Qf2 {[%clk 0:02:30.1]} 21... Qxf2+ {[%clk 0:02:15]} 22. Kxf2 {[%clk 0:02:31]}
22... Nf4 {[%clk 0:02:15.2]} 23. Bf1 {[%clk 0:02:31.2]} 23... Rad8 {[%clk
0:02:14.2]} 24. Rxd7 {[%clk 0:02:29.4]} 24... Rxd7 {[%clk 0:02:15.1]} 25. Ke3
{[%clk 0:02:28.8]} 25... Ng6 {[%clk 0:02:12.9]} 26. g3 {[%clk 0:02:29.1]} 26...
f6 {[%clk 0:02:10.7]} 27. Bc3 {[%clk 0:02:28.4]} 27... Kf7 {[%clk 0:02:10]} 28.
a3 {[%clk 0:02:28.9]} 28... h5 {[%clk 0:02:06.8]} 29. Be2 {[%clk 0:02:26.1]}
29... h4 {[%clk 0:02:02]} 30. Rg1 {[%clk 0:02:18.7]} 30... hxg3 {[%clk
0:01:54.4]} 31. Rxg3 {[%clk 0:02:19.6]} 31... e5 {[%clk 0:01:49.6]} 32. Rg1
{[%clk 0:01:53.9]} 32... Nf4 {[%clk 0:01:48.5]} 33. Rc1 {[%clk 0:01:47.8]} 33...
Bc8 {[%clk 0:01:41.6]} 34. Bf1 {[%clk 0:01:43.1]} 34... Rd8 {[%clk 0:01:38.8]}
35. b4 {[%clk 0:01:43.1]} 35... Be6 {[%clk 0:01:27.4]} 36. bxc5 {[%clk
0:01:40.3]} 36... bxc5 {[%clk 0:01:28.3]} 37. Rb1 {[%clk 0:01:38.4]} 37... Bh3
{[%clk 0:01:14.3]} 38. Be2 {[%clk 0:01:23.1]} 38... Rd7 {[%clk 0:00:59.4]} 39.
Rb5 {[%clk 0:01:18.6]} 39... Rc7 {[%clk 0:00:58.6]} 40. Ba5 {[%clk 0:01:18.5]}
40... Rd7 {[%clk 0:00:50]} 41. Rxc5 {[%clk 0:01:18.6]} 41... Ne6 {[%clk
0:00:47.4]} 42. Rd5 {[%clk 0:01:11.5]} 42... Nf4 {[%clk 0:00:42]} 43. Rxd7+
{[%clk 0:00:55.4]} 43... Bxd7 {[%clk 0:00:42.9]} 44. Bf1 {[%clk 0:00:55.9]}
44... Ba4 {[%clk 0:00:36.2]} 45. c5 {[%clk 0:00:52.7]} 45... Ke7 {[%clk
0:00:34]} 46. Bc4 {[%clk 0:00:51.7]} 46... Kd7 {[%clk 0:00:30.5]} 47. Bd5 {[%clk
0:00:43.3]} 47... Bc6 {[%clk 0:00:21.7]} 48. Bf7 {[%clk 0:00:42.5]} 48... Bb5
{[%clk 0:00:19.8]} 49. Bb4 {[%clk 0:00:42.2]} 49... a6 {[%clk 0:00:17]} 50. Kd2
{[%clk 0:00:35.8]} 50... Ne6 {[%clk 0:00:15.8]} 51. Ke3 {[%clk 0:00:29.1]} 51...
Nd4 {[%clk 0:00:15.8]} 52. Bd5 {[%clk 0:00:28.6]} 52... Bc6 {[%clk 0:00:15]} 53.
Bc3 {[%clk 0:00:27.1]} 53... Nc2+ {[%clk 0:00:12.3]} 54. Kd2 {[%clk 0:00:26.9]}
54... Nxa3 {[%clk 0:00:11.4]} 55. Bg8 {[%clk 0:00:25.7]} 55... Nb5 {[%clk
0:00:10.5]} 56. Ba5 {[%clk 0:00:25.8]} 56... Nd4 {[%clk 0:00:09.7]} 57. Ke3
{[%clk 0:00:26.4]} 57... Bb5 {[%clk 0:00:09.3]} 58. Bb6 {[%clk 0:00:26.2]} 58...
g6 {[%clk 0:00:08.6]} 59. Bf7 {[%clk 0:00:26]} 59... g5 {[%clk 0:00:08.1]} 60.
Bh5 {[%clk 0:00:26.4]} 60... Ke6 {[%clk 0:00:06.9]} 61. Bg4+ {[%clk 0:00:26]}
61... Ke7 {[%clk 0:00:06.4]} 62. Bc8 {[%clk 0:00:25.1]} 62... Bd7 {[%clk
0:00:06.7]} 63. Bb7 {[%clk 0:00:25.2]} 63... a5 {[%clk 0:00:06.1]} 64. Bxa5
{[%clk 0:00:25]} 64... Nc2+ {[%clk 0:00:06.4]} 65. Kf2 {[%clk 0:00:23.3]} 65...
Nd4 {[%clk 0:00:06.8]} 66. Bc7 {[%clk 0:00:22.6]} 66... Bc6 {[%clk 0:00:07]} 67.
Bd6+ {[%clk 0:00:22.8]} 67... Kd7 {[%clk 0:00:07]} 68. Ba6 {[%clk 0:00:23.5]}
68... Bb5 {[%clk 0:00:06.9]} 69. Bb7 {[%clk 0:00:20.2]} 69... Bc6 {[%clk
0:00:07.1]} 70. Bxc6+ {[%clk 0:00:19.5]} 70... Nxc6 {[%clk 0:00:05.4]} 71. Kg3
{[%clk 0:00:19.9]} 71... Ke6 {[%clk 0:00:05.5]} 72. Bf8 {[%clk 0:00:19.4]} 72...
Nd4 {[%clk 0:00:05.3]} 73. Kg4 {[%clk 0:00:18.3]} 73... Kf7 {[%clk 0:00:05.4]}
74. Bd6 {[%clk 0:00:17.5]} 74... Kg6 {[%clk 0:00:05.6]} 75. Kg3 {[%clk 0:00:16]}
75... Kf7 {[%clk 0:00:05.7]} 76. Kf2 {[%clk 0:00:16.1]} 76... Ke6 {[%clk
0:00:05.8]} 77. Ke3 {[%clk 0:00:16.7]} 77... Kd7 {[%clk 0:00:05.9]} 78. Kd3
{[%clk 0:00:16.8]} 78... Kc6 {[%clk 0:00:06.2]} 79. Ke3 {[%clk 0:00:16.5]} 79...
Kd7 {[%clk 0:00:06]} 80. Kf2 {[%clk 0:00:14.4]} 80... Ke6 {[%clk 0:00:06.4]} 81.
Kg2 {[%clk 0:00:14.8]} 81... Kf7 {[%clk 0:00:06.9]} 82. Bc7 {[%clk 0:00:12.9]}
82... Ne6 {[%clk 0:00:05.8]} 83. Bb6 {[%clk 0:00:11.6]} 83... Nd4 {[%clk
0:00:05.6]} 84. Ba5 {[%clk 0:00:11.2]} 84... Ke6 {[%clk 0:00:05.7]} 85. Bc3
{[%clk 0:00:11.6]} 85... f5 {[%clk 0:00:06.1]} 86. exf5+ {[%clk 0:00:09]} 86...
Kxf5 {[%clk 0:00:06.5]} 87. Bd2 {[%clk 0:00:06.8]} 87... Ke6 {[%clk 0:00:05.5]}
88. Bxg5 {[%clk 0:00:06.8]} 88... Kd5 {[%clk 0:00:03.6]} 89. Bf6 {[%clk
0:00:07.4]} 89... Kxc5 {[%clk 0:00:03.6]} 90. Bxe5 {[%clk 0:00:08]} 90... Ne6
{[%clk 0:00:03.6]} 91. Kg3 {[%clk 0:00:07.9]} 91... Kd5 {[%clk 0:00:04]} 92. Bf6
{[%clk 0:00:08.6]} 92... Kd6 {[%clk 0:00:04.3]} 93. Kg4 {[%clk 0:00:09]} 93...
Nc7 {[%clk 0:00:03.9]} 94. Kf5 {[%clk 0:00:08.6]} 94... Kd7 {[%clk 0:00:04]} 95.
Be5 {[%clk 0:00:08.4]} 95... Ne8 {[%clk 0:00:03.8]} 96. Kg6 {[%clk 0:00:08.5]}
96... Ke6 {[%clk 0:00:03.9]} 97. f4 {[%clk 0:00:08.9]} 97... Ke7 {[%clk
0:00:01.7]} 98. f5 {[%clk 0:00:09]} 98... Kf8 {[%clk 0:00:01.7]} 99. Kg5 {[%clk
0:00:08.1]} 99... Ke7 {[%clk 0:00:02.6]} 100. Kf4 {[%clk 0:00:08.8]} 100... Nf6
{[%clk 0:00:03]} 101. Bxf6+ {[%clk 0:00:08.7]} 101... Kxf6 {[%clk 0:00:03.9]}
102. Ke4 {[%clk 0:00:09.6]} 102... Kf7 {[%clk 0:00:04.2]} 103. Ke5 {[%clk
0:00:10.4]} 103... Ke7 {[%clk 0:00:04.8]} 104. Kf4 {[%clk 0:00:11.2]} 104... Kf6
{[%clk 0:00:05]} 105. Kg4 {[%clk 0:00:11.7]} 105... Kf7 {[%clk 0:00:05.2]} 106.
Kg5 {[%clk 0:00:12.6]} 106... Kg7 {[%clk 0:00:05.7]} 107. f6+ {[%clk 0:00:13.5]}
107... Kf7 {[%clk 0:00:06.1]} 108. Kf5 {[%clk 0:00:14.4]} 108... Kf8 {[%clk
0:00:06.6]} 109. Ke5 {[%clk 0:00:15.1]} 109... Kf7 {[%clk 0:00:06.7]} 110. Kf5
{[%clk 0:00:15.5]} 110... Kf8 {[%clk 0:00:07]} 111. Kg5 {[%clk 0:00:16.4]}
111... Kf7 {[%clk 0:00:07.5]} 112. Kf4 {[%clk 0:00:16.3]} 112... Kxf6 {[%clk
0:00:07.6]} 1/2-1/2

[Event "Early-Titled-Tuesday-Blitz-February-27-2024"]
[Site "Chess.com"]
[Date "2024.02.27"]
[Round "2"]
[White "kids2010"]
[Black "MessiKingdom"]
[Result "1/2-1/2"]
[WhiteElo "2900"]
[BlackElo "2613"]
[TimeControl "180+1"]
[EndTime "8:20:26 PST"]
[Termination "Game drawn by agreement"]

1. e4 {[%clk 0:02:58.8]} 1... c6 {[%clk 0:03:00]} 2. d4 {[%clk 0:02:56.7]} 2...
d5 {[%clk 0:03:00.9]} 3. exd5 {[%clk 0:02:57.6]} 3... cxd5 {[%clk 0:03:01.8]} 4.
Bd3 {[%clk 0:02:58]} 4... Nc6 {[%clk 0:03:02.4]} 5. c3 {[%clk 0:02:57.7]} 5...
Nf6 {[%clk 0:03:03.1]} 6. Bf4 {[%clk 0:02:58.1]} 6... Bg4 {[%clk 0:03:03.3]} 7.
Qb3 {[%clk 0:02:58.7]} 7... Qd7 {[%clk 0:03:03.9]} 8. Nd2 {[%clk 0:02:57.3]}
8... e6 {[%clk 0:03:04.5]} 9. Ngf3 {[%clk 0:02:57.7]} 9... Bd6 {[%clk
0:03:05.2]} 10. Bxd6 {[%clk 0:02:58.4]} 10... Qxd6 {[%clk 0:03:05.8]} 11. O-O
{[%clk 0:02:59.1]} 11... O-O {[%clk 0:03:06.5]} 12. Rae1 {[%clk 0:02:59.5]}
12... Ne7 {[%clk 0:03:07.2]} 13. Ne5 {[%clk 0:02:52.7]} 13... Bf5 {[%clk
0:03:07.6]} 14. Qc2 {[%clk 0:02:46.8]} 14... h5 {[%clk 0:02:46.2]} 15. f3 {[%clk
0:02:42.3]} 15... Rac8 {[%clk 0:02:40.1]} 16. Bxf5 {[%clk 0:02:36.6]} 16... Nxf5
{[%clk 0:02:39.9]} 17. Qd3 {[%clk 0:02:33.8]} 17... h4 {[%clk 0:02:37.2]} 18. f4
{[%clk 0:02:18]} 18... b5 {[%clk 0:02:36.5]} 19. a3 {[%clk 0:02:12.5]} 19... a5
{[%clk 0:02:31.5]} 20. Nb3 {[%clk 0:02:03.8]} 20... b4 {[%clk 0:02:31.3]} 21.
axb4 {[%clk 0:01:59.8]} 21... axb4 {[%clk 0:02:31.5]} 22. Nc5 {[%clk 0:02:00.4]}
22... Rxc5 {[%clk 0:02:26.1]} 23. dxc5 {[%clk 0:02:00.3]} 23... Qxc5+ {[%clk
0:02:27]} 24. Kh1 {[%clk 0:02:00.9]} 24... Ne4 {[%clk 0:02:23.9]} 25. Qf3 {[%clk
0:01:49.3]} 25... Qd6 {[%clk 0:01:40.3]} 26. Rd1 {[%clk 0:01:31.3]} 26... bxc3
{[%clk 0:01:40.3]} 27. bxc3 {[%clk 0:01:32.2]} 27... f6 {[%clk 0:01:20]} 28. Ng4
{[%clk 0:01:15.5]} 28... Rc8 {[%clk 0:01:18.6]} 29. Ne3 {[%clk 0:01:15.6]} 29...
Rxc3 {[%clk 0:00:45.5]} 30. Nxf5 {[%clk 0:01:15]} 30... Rxf3 {[%clk 0:00:46.2]}
31. Nxd6 {[%clk 0:01:15.5]} 31... Rxf1+ {[%clk 0:00:46.9]} 32. Rxf1 {[%clk
0:01:16.2]} 32... Nxd6 {[%clk 0:00:47.7]} 33. g3 {[%clk 0:01:14.9]} 33... hxg3
{[%clk 0:00:47.4]} 34. hxg3 {[%clk 0:01:15.8]} 34... Ne4 {[%clk 0:00:48]} 35.
Kg2 {[%clk 0:01:15.9]} 35... Kf7 {[%clk 0:00:48.4]} 36. Ra1 {[%clk 0:01:16.6]}
36... Kg6 {[%clk 0:00:47.5]} 37. Kf3 {[%clk 0:01:17.2]} 37... f5 {[%clk
0:00:28.5]} 38. Ra6 {[%clk 0:01:14.5]} 38... Kf6 {[%clk 0:00:28.9]} 39. Ra8
{[%clk 0:01:14.7]} 39... g5 {[%clk 0:00:28.8]} 40. Rf8+ {[%clk 0:01:09.8]} 40...
Kg7 {[%clk 0:00:28.1]} 41. Ra8 {[%clk 0:01:09.2]} 41... Kf6 {[%clk 0:00:26.7]}
42. Rh8 {[%clk 0:00:59.7]} 42... g4+ {[%clk 0:00:24.8]} 43. Kg2 {[%clk 0:01:00]}
43... Ke7 {[%clk 0:00:24.8]} 44. Ra8 {[%clk 0:00:56.9]} 44... Kd6 {[%clk
0:00:22.3]} 45. Ra6+ {[%clk 0:00:57.1]} 45... Kd7 {[%clk 0:00:22.8]} 46. Ra3
{[%clk 0:00:57.5]} 46... Kd6 {[%clk 0:00:23]} 47. Kf1 {[%clk 0:00:55]} 47... d4
{[%clk 0:00:22.5]} 48. Ke2 {[%clk 0:00:54.5]} 48... Kd5 {[%clk 0:00:22.6]} 49.
Kd3 {[%clk 0:00:51.6]} 49... Nxg3 {[%clk 0:00:20.4]} 50. Ra5+ {[%clk 0:00:51.6]}
50... Kd6 {[%clk 0:00:21]} 51. Kxd4 {[%clk 0:00:52.2]} 51... Ne2+ {[%clk
0:00:21.5]} 52. Ke3 {[%clk 0:00:52.9]} 52... Nc3 {[%clk 0:00:22.1]} 53. Ra6+
{[%clk 0:00:51.4]} 53... Ke7 {[%clk 0:00:22.2]} 54. Kd4 {[%clk 0:00:50.3]} 54...
Nd5 {[%clk 0:00:16]} 55. Ke5 {[%clk 0:00:50.5]} 55... Nc7 {[%clk 0:00:16.7]} 56.
Ra7 {[%clk 0:00:50.5]} 56... Kd7 {[%clk 0:00:17.3]} 57. Rb7 {[%clk 0:00:50.5]}
57... Kc6 {[%clk 0:00:17.1]} 58. Rb1 {[%clk 0:00:48.2]} 58... Kd7 {[%clk
0:00:17.7]} 59. Rd1+ {[%clk 0:00:48.3]} 59... Nd5 {[%clk 0:00:18.3]} 60. Rh1
{[%clk 0:00:49.1]} 60... Ke7 {[%clk 0:00:18.7]} 61. Rh7+ {[%clk 0:00:49.2]}
61... Kd8 {[%clk 0:00:18.8]} 62. Kxe6 {[%clk 0:00:49.5]} 62... Nxf4+ {[%clk
0:00:19.6]} 63. Kxf5 {[%clk 0:00:47.1]} 63... Nd5 {[%clk 0:00:20.1]} 64. Rg7
{[%clk 0:00:45.4]} 64... Ne7+ {[%clk 0:00:18]} 65. Ke6 {[%clk 0:00:45.5]} 65...
Nc8 {[%clk 0:00:17.7]} 66. Rd7+ {[%clk 0:00:41.6]} 66... Ke8 {[%clk 0:00:18.2]}
67. Rc7 {[%clk 0:00:42.3]} 67... Kd8 {[%clk 0:00:18.7]} 68. Rg7 {[%clk
0:00:42.6]} 68... Nb6 {[%clk 0:00:18.4]} 69. Kd6 {[%clk 0:00:40.9]} 69... Nc8+
{[%clk 0:00:18.9]} 70. Kc6 {[%clk 0:00:40.2]} 70... Ne7+ {[%clk 0:00:19.5]} 71.
Kd6 {[%clk 0:00:40.9]} 71... Nc8+ {[%clk 0:00:20.2]} 72. Ke5 {[%clk 0:00:41.6]}
72... g3 {[%clk 0:00:19.6]} 73. Rxg3 {[%clk 0:00:42]} 73... Nb6 {[%clk 0:00:20]}
74. Rh3 {[%clk 0:00:42.9]} 74... Kc7 {[%clk 0:00:20.1]} 75. Rh7+ {[%clk
0:00:43.5]} 75... Kc6 {[%clk 0:00:20.8]} 76. Ke4 {[%clk 0:00:44.4]} 76... Kc5
{[%clk 0:00:21.2]} 77. Rh6 {[%clk 0:00:45.3]} 77... Nc4 {[%clk 0:00:21.2]} 78.
Rh8 {[%clk 0:00:45.1]} 78... Nd6+ {[%clk 0:00:21.1]} 79. Ke5 {[%clk 0:00:45.7]}
79... Nc4+ {[%clk 0:00:21.8]} 80. Kf4 {[%clk 0:00:45.5]} 80... Kd4 {[%clk
0:00:21.8]} 81. Rd8+ {[%clk 0:00:45.7]} 81... Kc5 {[%clk 0:00:22.5]} 82. Kf3
{[%clk 0:00:45.9]} 82... Nd6 {[%clk 0:00:22.9]} 83. Ke2 {[%clk 0:00:45.6]} 83...
Kd5 {[%clk 0:00:23.2]} 84. Kd3 {[%clk 0:00:46]} 84... Ke5 {[%clk 0:00:23.9]} 85.
Ra8 {[%clk 0:00:46.2]} 85... Kd5 {[%clk 0:00:24.8]} 86. Ra5+ {[%clk 0:00:47]}
86... Kc6 {[%clk 0:00:25.2]} 87. Kd4 {[%clk 0:00:47.9]} 87... Nb5+ {[%clk
0:00:25.5]} 88. Kc4 {[%clk 0:00:48.4]} 88... Nd6+ {[%clk 0:00:26.4]} 89. Kb4
{[%clk 0:00:49.3]} 89... Kb6 {[%clk 0:00:26.8]} 90. Rh5 {[%clk 0:00:50.2]} 90...
Kc6 {[%clk 0:00:27.7]} 91. Rh6 {[%clk 0:00:51.1]} 91... Kd5 {[%clk 0:00:28]} 92.
Kc3 {[%clk 0:00:52]} 92... Kc5 {[%clk 0:00:28.3]} 93. Rh5+ {[%clk 0:00:51.9]}
93... Kc6 {[%clk 0:00:29]} 94. Kd4 {[%clk 0:00:52.7]} 94... Nb5+ {[%clk
0:00:29.8]} 95. Ke5 {[%clk 0:00:50.6]} 95... Kc5 {[%clk 0:00:30.4]} 96. Rh1
{[%clk 0:00:49.2]} 96... Nd6 {[%clk 0:00:29.6]} 97. Rc1+ {[%clk 0:00:49.6]}
97... Nc4+ {[%clk 0:00:30.2]} 98. Ke4 {[%clk 0:00:50.3]} 98... Kb4 {[%clk
0:00:28.4]} 99. Kd4 {[%clk 0:00:51]} 99... Nb2 {[%clk 0:00:28.6]} 100. Rc8
{[%clk 0:00:48.1]} 100... Na4 {[%clk 0:00:24.9]} 101. Rb8+ {[%clk 0:00:47.3]}
101... Ka5 {[%clk 0:00:25.6]} 102. Kd5 {[%clk 0:00:42.7]} 102... Nb6+ {[%clk
0:00:25.8]} 103. Kc6 {[%clk 0:00:42.9]} 103... Na4 {[%clk 0:00:25.8]} 104. Rb7
{[%clk 0:00:39.4]} 104... Nc3 {[%clk 0:00:25.5]} 105. Rb3 {[%clk 0:00:38.9]}
105... Na4 {[%clk 0:00:25.6]} 106. Rb1 {[%clk 0:00:28.6]} 106... Nc3 {[%clk
0:00:24.6]} 107. Rb2 {[%clk 0:00:29.3]} 107... Na4 {[%clk 0:00:24.5]} 108. Rb3
{[%clk 0:00:29.8]} 108... Ka6 {[%clk 0:00:23.3]} 109. Rb5 {[%clk 0:00:27]}
109... Nc3 {[%clk 0:00:20.6]} 110. Rb4 {[%clk 0:00:12.2]} 110... Ka5 {[%clk
0:00:20.5]} 111. Rc4 {[%clk 0:00:12.8]} 111... Na4 {[%clk 0:00:20.5]} 112. Re4
{[%clk 0:00:12.7]} 112... Nc3 {[%clk 0:00:19.2]} 113. Re8 {[%clk 0:00:12.4]}
113... Kb4 {[%clk 0:00:19.2]} 114. Rb8+ {[%clk 0:00:13]} 114... Kc4 {[%clk
0:00:19.7]} 1/2-1/2

[Event "Early-Titled-Tuesday-Blitz-February-27-2024"]
[Site "Chess.com"]
[Date "2024.02.27"]
[Round "3"]
[White "Cheer_Down"]
[Black "hmatyi07"]
[Result "1/2-1/2"]
[WhiteElo "2492"]
[BlackElo "2312"]
[TimeControl "180+1"]
[EndTime "8:22:07 PST"]
[Termination "Game drawn by repetition"]

1. e4 {[%clk 0:02:54.7]} 1... c5 {[%clk 0:02:59.8]} 2. Nf3 {[%clk 0:02:54.5]}
2... e6 {[%clk 0:03:00]} 3. d4 {[%clk 0:02:54.7]} 3... cxd4 {[%clk 0:03:00.9]}
4. Nxd4 {[%clk 0:02:54.8]} 4... Nf6 {[%clk 0:03:01.6]} 5. Nc3 {[%clk 0:02:54.3]}
5... Nc6 {[%clk 0:03:02.2]} 6. Bf4 {[%clk 0:02:53.8]} 6... Bc5 {[%clk
0:03:01.4]} 7. Ndb5 {[%clk 0:02:52.5]} 7... O-O {[%clk 0:03:00.6]} 8. Bd6 {[%clk
0:02:47.8]} 8... Qb6 {[%clk 0:03:00.2]} 9. Bxc5 {[%clk 0:02:41.8]} 9... Qxc5
{[%clk 0:03:00.2]} 10. Qd6 {[%clk 0:02:42.3]} 10... Qb6 {[%clk 0:03:00.2]} 11.
Qc7 {[%clk 0:02:33]} 11... Qc5 {[%clk 0:03:00.3]} 12. Qd6 {[%clk 0:02:18]} 12...
Qb6 {[%clk 0:03:00.2]} 13. Qc7 {[%clk 0:02:18]} 13... Qc5 {[%clk 0:03:00.2]} 14.
Qd6 {[%clk 0:02:18]} 1/2-1/2

[Event "Early-Titled-Tuesday-Blitz-February-27-2024"]
[Site "Chess.com"]
[Date "2024.02.27"]
[Round "3"]
[White "Winner_7777"]
[Black "NtcPou"]
[Result "1-0"]
[WhiteElo "2540"]
[BlackElo "2001"]
[TimeControl "180+1"]
[EndTime "8:23:27 PST"]
[Termination "Winner_7777 won by resignation"]

1. d4 {[%clk 0:02:59]} 1... d5 {[%clk 0:02:59.8]} 2. c4 {[%clk 0:02:59.4]} 2...
c6 {[%clk 0:02:59.7]} 3. Nc3 {[%clk 0:02:59.8]} 3... Nf6 {[%clk 0:02:56.1]} 4.
Nf3 {[%clk 0:03:00.2]} 4... a6 {[%clk 0:02:55.7]} 5. g3 {[%clk 0:02:59.3]} 5...
b5 {[%clk 0:02:55.3]} 6. cxd5 {[%clk 0:02:56.4]} 6... cxd5 {[%clk 0:02:54.8]} 7.
Bg2 {[%clk 0:02:56.2]} 7... e6 {[%clk 0:02:55.1]} 8. O-O {[%clk 0:02:56.3]} 8...
Bb7 {[%clk 0:02:54.9]} 9. Ne5 {[%clk 0:02:56]} 9... Be7 {[%clk 0:02:54.3]} 10.
Bf4 {[%clk 0:02:29.7]} 10... O-O {[%clk 0:02:49.1]} 11. Rc1 {[%clk 0:02:27.2]}
11... Nbd7 {[%clk 0:02:46.8]} 12. a4 {[%clk 0:02:20.4]} 12... b4 {[%clk
0:02:33.2]} 13. Na2 {[%clk 0:02:16.6]} 13... Qa5 {[%clk 0:02:19.7]} 14. Nxd7
{[%clk 0:02:15.8]} 14... Nxd7 {[%clk 0:02:18.5]} 15. Rc7 {[%clk 0:02:01.9]}
15... e5 {[%clk 0:02:14.9]} 16. Rxd7 {[%clk 0:01:57.6]} 1-0

[Event "Early-Titled-Tuesday-Blitz-February-27-2024"]
[Site "Chess.com"]
[Date "2024.02.27"]
[Round "3"]
[White "Rosh1610"]
[Black "Alblooshi_Hamad"]
[Result "1-0"]
[WhiteElo "2416"]
[BlackElo "2163"]
[TimeControl "180+1"]
[EndTime "8:23:46 PST"]
[Termination "Rosh1610 won by resignation"]

1. Nf3 {[%clk 0:02:54.3]} 1... Nf6 {[%clk 0:03:00.1]} 2. g3 {[%clk 0:02:55]}
2... d5 {[%clk 0:02:55.5]} 3. d3 {[%clk 0:02:37.8]} 3... g6 {[%clk 0:02:54.4]}
4. Bg2 {[%clk 0:02:38.2]} 4... Bg7 {[%clk 0:02:54.5]} 5. Nbd2 {[%clk 0:02:39.1]}
5... Nbd7 {[%clk 0:02:54.5]} 6. O-O {[%clk 0:02:40]} 6... e5 {[%clk 0:02:53.3]}
7. e4 {[%clk 0:02:40.9]} 7... dxe4 {[%clk 0:02:50.1]} 8. dxe4 {[%clk 0:02:41.1]}
8... O-O {[%clk 0:02:50.1]} 9. b3 {[%clk 0:02:39.9]} 9... Re8 {[%clk 0:02:50.2]}
10. Bb2 {[%clk 0:02:40.3]} 10... c6 {[%clk 0:02:41.9]} 11. Qe2 {[%clk
0:02:40.7]} 11... Qc7 {[%clk 0:02:42.2]} 12. Rad1 {[%clk 0:02:38.9]} 12... Nb6
{[%clk 0:02:39.5]} 13. a4 {[%clk 0:02:34.9]} 13... Bg4 {[%clk 0:02:38.6]} 14. h3
{[%clk 0:02:33.8]} 14... Bxf3 {[%clk 0:02:36.9]} 15. Qxf3 {[%clk 0:02:33.3]}
15... Rad8 {[%clk 0:02:34.9]} 16. a5 {[%clk 0:02:33]} 16... Nbd7 {[%clk
0:02:26.9]} 17. Nc4 {[%clk 0:02:33.2]} 17... b5 {[%clk 0:02:12.7]} 18. axb6
{[%clk 0:02:32.3]} 18... axb6 {[%clk 0:02:13.6]} 19. Bc3 {[%clk 0:02:20]} 19...
b5 {[%clk 0:02:13.4]} 20. Ba5 {[%clk 0:02:19]} 20... Qb8 {[%clk 0:02:00.6]} 21.
Bxd8 {[%clk 0:02:18.3]} 21... bxc4 {[%clk 0:02:01.5]} 22. Bxf6 {[%clk
0:02:16.6]} 22... Nxf6 {[%clk 0:02:01.6]} 23. bxc4 {[%clk 0:02:16.6]} 23... Qb2
{[%clk 0:01:57.5]} 24. Qb3 {[%clk 0:02:15.7]} 1-0

[Event "Early-Titled-Tuesday-Blitz-February-27-2024"]
[Site "Chess.com"]
[Date "2024.02.27"]
[Round "3"]
[White "Sjakkerntobi"]
[Black "HamedWafa4"]
[Result "0-1"]
[WhiteElo "2482"]
[BlackElo "2706"]
[TimeControl "180+1"]
[EndTime "8:23:47 PST"]
[Termination "HamedWafa4 won by resignation"]

1. e4 {[%clk 0:03:00.9]} 1... c5 {[%clk 0:02:59.2]} 2. Nf3 {[%clk 0:03:00.6]}
2... Nc6 {[%clk 0:02:59.6]} 3. c3 {[%clk 0:02:58.4]} 3... Nf6 {[%clk 0:02:56.3]}
4. e5 {[%clk 0:02:58.5]} 4... Nd5 {[%clk 0:02:56.9]} 5. d4 {[%clk 0:02:58.9]}
5... cxd4 {[%clk 0:02:57.3]} 6. cxd4 {[%clk 0:02:59.5]} 6... d6 {[%clk
0:02:57.4]} 7. a3 {[%clk 0:02:50.2]} 7... Nb6 {[%clk 0:02:39.4]} 8. Bd3 {[%clk
0:02:48.6]} 8... Bg4 {[%clk 0:02:37.7]} 9. h3 {[%clk 0:02:44.9]} 9... Bxf3
{[%clk 0:02:32]} 10. Qxf3 {[%clk 0:02:45.8]} 10... dxe5 {[%clk 0:02:32.6]} 11.
dxe5 {[%clk 0:02:29.1]} 11... Nxe5 {[%clk 0:02:18.2]} 12. Bb5+ {[%clk
0:02:28.9]} 12... Ned7 {[%clk 0:02:18.8]} 13. O-O {[%clk 0:02:26.1]} 13... a6
{[%clk 0:02:18.3]} 14. Be2 {[%clk 0:02:10.8]} 14... e6 {[%clk 0:02:14.5]} 15.
Qxb7 {[%clk 0:02:08.3]} 15... Be7 {[%clk 0:02:14.4]} 16. Nc3 {[%clk 0:02:02.9]}
16... O-O {[%clk 0:02:13.9]} 17. Bf3 {[%clk 0:02:00.5]} 17... Nc5 {[%clk
0:02:05.6]} 18. Qc6 {[%clk 0:01:48.7]} 18... Rc8 {[%clk 0:02:04.8]} 0-1

[Event "Early-Titled-Tuesday-Blitz-February-27-2024"]
[Site "Chess.com"]
[Date "2024.02.27"]
[Round "3"]
[White "davigator"]
[Black "SlavenPastar"]
[Result "0-1"]
[WhiteElo "2405"]
[BlackElo "2605"]
[TimeControl "180+1"]
[EndTime "8:23:59 PST"]
[Termination "SlavenPastar won by resignation"]

1. e4 {[%clk 0:03:00.9]} 1... b6 {[%clk 0:03:00.9]} 2. d4 {[%clk 0:03:00.3]}
2... Bb7 {[%clk 0:03:01.6]} 3. Nc3 {[%clk 0:03:00]} 3... e6 {[%clk 0:03:01.5]}
4. a3 {[%clk 0:03:00.4]} 4... d6 {[%clk 0:03:00.3]} 5. Nf3 {[%clk 0:02:55.2]}
5... Nd7 {[%clk 0:03:00.8]} 6. Be3 {[%clk 0:02:52.3]} 6... g6 {[%clk 0:02:59.5]}
7. Qd2 {[%clk 0:02:51.3]} 7... Bg7 {[%clk 0:02:59.1]} 8. O-O-O {[%clk
0:02:50.4]} 8... Ngf6 {[%clk 0:02:55.7]} 9. Bh6 {[%clk 0:02:45.8]} 9... Bxh6
{[%clk 0:02:52.1]} 10. Qxh6 {[%clk 0:02:44.9]} 10... Nxe4 {[%clk 0:02:50.3]} 11.
Nxe4 {[%clk 0:02:28]} 11... Bxe4 {[%clk 0:02:48.9]} 12. Ng5 {[%clk 0:02:26.8]}
12... Bb7 {[%clk 0:02:40.7]} 13. Nxh7 {[%clk 0:02:14.7]} 13... Qe7 {[%clk
0:02:25.2]} 14. Bb5 {[%clk 0:02:02.1]} 14... c6 {[%clk 0:02:18.6]} 15. Bd3
{[%clk 0:01:59.7]} 15... O-O-O {[%clk 0:02:16]} 16. h4 {[%clk 0:01:54.3]} 16...
Nf6 {[%clk 0:02:02.8]} 17. Qg5 {[%clk 0:01:49]} 17... Rxh7 {[%clk 0:01:58.1]}
18. g4 {[%clk 0:01:48.6]} 18... Nd5 {[%clk 0:01:52.9]} 0-1